Cogmind - Beta 13 @@@ ROGUE MODE // 2024.05.01 @ 21:57:30 Player: ConfusedWizard Result: Self-destructed Performance ------------- Evolutions (1) 500 Regions Visited (2) 400 Robots Destroyed (22) 110 Value Destroyed (481) 481 Prototype IDs (2) 40 Alien Tech Used (0) 0 Bonus (0) 0 TOTAL SCORE: 1531 Bonus ------- None Cogmind --------- Core Integrity 257/400 Matter 123/300 Energy 87/100 System Corruption 0% Temperature Cool (0) Movement Core (700) Ox13 Location -9/Materials Parts ------- > --- POWER (2) -------- (None) > --- PROPULSION (2) --- (None) > --- UTILITY (3) ------ High-capacity Storage Unit Improved Sensor Array Core Shielding > --- WEAPON (2) ------- (None) > --- INVENTORY (20) --- Faulty Improved Flight Unit Improved Flight Unit Improved Flight Unit Improved Flight Unit Improved Flight Unit Small Storage Unit Improved Sensor Array Improved Sensor Array Improved Sensor Array Signal Interpreter ECM Suite Hammer Mining Claw Peak State ------------ > --- POWER ------------ Ion Engine > --- PROPULSION ------- Light Treads Light Treads > --- UTILITY ---------- High-capacity Storage Unit Improved Sensor Array Core Shielding > --- WEAPON ----------- Medium Laser Medium Laser > --- INVENTORY -------- Improved Flight Unit Improved Flight Unit Improved Flight Unit Improved Flight Unit Small Storage Unit Improved Sensor Array Signal Interpreter ECM Suite Small Laser Hammer Mining Claw [Rating: 12] Favorites ----------- Power Light Ion Engine Engine Light Ion Engine Propulsion Light Treads Treads Light Treads Utility High-capacity Storage Unit Device Improved Sensor Array Storage High-capacity Storage Unit Protection Core Shielding Weapon Assault Rifle Energy Gun Medium Laser Ballistic Gun Assault Rifle Launcher Grenade Launcher Slashing Weapon Mining Claw Build | -11 -10 -9 ------- Run | Yrd Mat Mat Slots Evolved 2 | . . 2 Power 1 | . . 1 Propulsion . | . . . Utility 1 | . . 1 Weapon . | . . . Parts Attached 17 | 6 5 6 Power 3 | 1 1 1 Engine 3 | 1 1 1 Core . | . . . Reactor . | . . . Propulsion 2 | 2 . . Treads 2 | 2 . . Leg . | . . . Wheel . | . . . Hover . | . . . Flight . | . . . Utility 4 | 1 1 2 Device 1 | . . 1 Storage 2 | 1 1 . Processor . | . . . Hackware . | . . . Protection 1 | . . 1 Artifact . | . . . Weapon 8 | 2 3 3 Energy Gun 4 | 1 . 3 Energy Cannon . | . . . Ballistic Gun 2 | 1 1 . Ballistic Cannon . | . . . Launcher 1 | . 1 . Special Weapon . | . . . Impact Weapon . | . . . Slashing Weapon 1 | . 1 . Piercing Weapon . | . . . Special Melee Weapon . | . . . Unidentified Prototypes . | . . . Parts Lost 7 | . . 7 Power 2 | . . 2 Propulsion 2 | . . 2 Utility . | . . . Weapon 3 | . . 3 Highest Loss Streak 3 | . . 3 To Critical Strikes . | . . . Average Slot Usage (%) 83 | . 85 77 Engine 11 | . 14 4 Treads 26 | . 28 21 Device 2 | . . 8 Storage 13 | . 14 11 Protection 2 | . . 11 Energy Gun 5 | . . 19 Ballistic Gun 10 | . 13 . Launcher 10 | . 13 1 Naked Turns . | . . . Heaviest Build 54 | 11 48 54 Greatest Support 40 | 40 40 40 Greatest Overweight (x) 14 | . 1 14 Average Overweight (x) . | . . 1 Largest Inventory Capacity 20 | 8 20 20 Average Capacity 17 | 7 17 20 Most Carried 14 | 5 14 14 Average Carried 10 | 1 10 13 Final Capacity 20 | 8 20 20 Final Carried 14 | 1 14 13 Class Distribution -------------------- 100% | Mutant Dominant Class ---------------- Mutant | -10/Materials Mutant | -9/Materials Resources | -11 -10 -9 ----------- Run | Yrd Mat Mat Matter Collected 444 | 208 142 94 Remotely . | . . . Salvage Created 364 | . 214 150 Parts 31 | . 22 9 Haulers Intercepted 1 | . 1 . Recyclers Shooed 2 | . 1 1 Parts Field Recycled . | . . . Retrieved Matter . | . . . Parts Self-Destructed . | . . . Prevented . | . . . Kills | -11 -10 -9 ------- Run | Yrd Mat Mat Combat Hostiles Destroyed 16 | . 9 7 Guns 7 | . 3 4 AOE 9 | . 6 3 Classes Destroyed 6 | . 6 . Worker 1 | . 1 . Builder 2 | . 2 . Hauler 1 | . 1 . Watcher 2 | . 2 . Swarmer 6 | . 6 . Grunt 10 | . 3 7 Best Kill Streak 9 | . 9 3 Combat Bots Only 7 | . 7 3 Max Kills in Single Turn 3 | . 3 1 Gunslinging . | . . . Exploded 2 | . 2 1 Melee . | . . . Uniques/NPCs Destroyed . | . . . Combat | -11 -10 -9 -------- Run | Yrd Mat Mat Hostile Shots Fired 97 | . 38 59 Missed 28 | . 13 15 Damage Taken 1060 | . 365 695 Core 211 | . 68 143 Absorbed by Shields . | . . . Redirected to Shielding 24 | . . 24 Core Remaining (%) 86 | 100 72 . Volleys Fired 56 | . 31 25 Largest 2 | . 2 2 Hottest 100 | . 50 100 Shots Fired 87 | . 44 43 Gun 65 | . 31 34 Cannon . | . . . Launcher 22 | . 13 9 Special . | . . . Kinetic 33 | . 31 2 Thermal 32 | . . 32 Explosive 22 | . 13 9 Electromagnetic . | . . . Robot Hit Streak 9 | . 5 9 Robot Miss Streak 4 | . 4 3 Penetration Max . | . . . Secondary Targets . | . . . Shots Hit Robots 50 | . 21 29 Core Hits 43 | . 24 19 Critical Kills . | . . . Critical Parts Destroyed . | . . . Critical Strikes . | . . . Melee Attacks 3 | . 3 . Impact . | . . . Slashing 3 | . 3 . Piercing . | . . . Sneak Attacks . | . . . Combat Hostiles . | . . . Follow-up Attacks . | . . . Damage Inflicted 1832 | . 979 853 Guns 465 | . 170 295 Cannons . | . . . Explosions 1339 | . 789 550 Melee . | . . . Ramming 28 | . 20 8 Kinetic 180 | . 170 10 Thermal 285 | . . 285 Explosive 1339 | . 789 550 Electromagnetic . | . . . Impact . | . . . Slashing . | . . . Piercing . | . . . Highest Corruption . | . . . Average Corruption . | . . . Corruption Purged . | . . . Corruption Blocked . | . . . Overload Shots . | . . . Overflow Damage 16 | . 16 . Projectiles . | . . . Explosions 16 | . 16 . Melee . | . . . Knockbacks 2 | . 2 . Impact 2 | . 2 . Kinetic . | . . . Secondary . | . . . Self-Inflicted Damage 103 | . 79 24 Shots 8 | . 5 3 Rammed 8 | . 6 2 Targets Rammed 8 | . 6 2 Kicked . | . . . Crushed . | . . . Highest Temperature 180 | . 5 180 Average Temperature 38 | . 2 40 Received Heat Transfer 282 | . 54 228 Siege Activations . | . . . Robots Corrupted . | . . . Combat Hostiles . | . . . Parts Fried . | . . . Impact Corruptions . | . . . Robots Melted . | . . . Combat Hostiles . | . . . Parts Melted 1 | . . 1 Heat Transferred 827 | . . 827 Parts Sabotaged . | . . . Parts Stolen . | . . . Parts Stripped . | . . . Power Chain Reactions . | . . . Alert | -11 -10 -9 ------- Run | Yrd Mat Mat Peak Influence 273 | . 273 150 Initial . | . . . Average 64 | . 60 81 Maximum Alert Level 1 | . 1 . Low Security (%) 86 | 100 81 100 Level 1 13 | . 18 . Level 2 . | . . . Level 3 . | . . . Level 4 . | . . . Level 5 . | . . . High Security . | . . . Max Security . | . . . Squads Dispatched 3 | . 1 2 Investigation 1 | . 1 . Extermination . | . . . Reinforcement 2 | . . 2 Assault . | . . . Garrison . | . . . Intercept . | . . . Searches Triggered . | . . . Construction Impeded 1 | . . 1 Haulers Reinforced . | . . . Active Scanning Responses . | . . . Cargo Convoy Interrupts . | . . . Stealth | -11 -10 -9 --------- Run | Yrd Mat Mat Distress Signals . | . . . Communications Jammed . | . . . Distress Signals . | . . . Times Spotted 32 | . 18 14 Peak Tracking Total 6 | . 6 5 Tactical Retreats 2 | . 1 1 Traps | -11 -10 -9 ------- Run | Yrd Mat Mat Traps Triggered 2 | . 2 . Indirectly . | . . . Trap Hack Attempts . | . . . Triggered . | . . . Disarmed . | . . . Reprogrammed . | . . . Reused . | . . . Traps Extracted . | . . . Installed . | . . . Triggered . | . . . Machines | -11 -10 -9 ---------- Run | Yrd Mat Mat Machines Disabled 1 | . 1 . Max in Single Turn 1 | . 1 . Machines Repaired . | . . . Machines Dismantled . | . . . Machines Sabotaged . | . . . Overloaded Fab Kills . | . . . Hacking | -11 -10 -9 --------- Run | Yrd Mat Mat Machines Accessed 12 | . 10 2 Terminals 8 | . 7 1 Fabricators . | . . . Repair Stations 2 | . 1 1 Recycling Units 2 | . 2 . Scanalyzers . | . . . Garrison Access . | . . . Total Hacks 31 | . 27 4 Successful 23 | . 20 3 Failed 8 | . 7 1 Catastrophic 1 | . . 1 Database Lockouts . | . . . Manual . | . . . Terminals 26 | . 23 3 Fabricators . | . . . Repair Stations 2 | . 1 1 Recycling Units 3 | . 3 . Scanalyzers . | . . . Garrison Access . | . . . Terminal Hacks 19 | . 17 2 Record 5 | . 5 . Prototype ID Bank 1 | . 1 . Branch Access Points 1 | . . 1 Emergency Access Points 2 | . 2 . Alert Level 4 | . 3 1 Unreport Threat 1 | . 1 . Locate Traps 2 | . 2 . Hauler Manifests 1 | . 1 . Zone Layout 2 | . 2 . Fabricator Hacks . | . . . Repair Station Hacks 1 | . . 1 Scan Component 1 | . . 1 Recycling Unit Hacks 3 | . 3 . Process 1 | . 1 . Report Inventory 2 | . 2 . Scanalyzer . | . . . Garrison Access Hacks . | . . . Unauthorized Hacks . | . . . Terminals . | . . . Fabricators . | . . . Repair Stations . | . . . Recycling Units . | . . . Scanalyzers . | . . . Garrison Access . | . . . Data Cores Recovered . | . . . Used . | . . . Hacking Detections 8 | . 8 . Full Trace Events . | . . . Feedback Events . | . . . Feedback Blocked . | . . . Robot Schematics Acquired . | . . . Robots Built . | . . . Authchips . | . . . Time . | . . . Total Robot Build Rating . | . . . Part Schematics Acquired . | . . . Parts Built . | . . . Authchips . | . . . Time . | . . . Total Part Build Rating . | . . . Parts Repaired . | . . . Time . | . . . Parts Recycled . | . . . Recycled Matter 13 | . 13 . Retrieved Matter . | . . . Retrieved Components . | . . . Parts Scanalyzed . | . . . Part Schematics Acquired . | . . . Parts Damaged . | . . . Bothacking | -11 -10 -9 ------------ Run | Yrd Mat Mat Used RIF Installer . | . . . Robots Hacked . | . . . Non-combat . | . . . Combat . | . . . Robot Hacks Applied . | . . . Relay Couplers Released . | . . . Fabnet Peak Effective % . | . . . Robots Rewired . | . . . Allies Hacked . | . . . Hacks Repelled . | . . . Allies | -11 -10 -9 -------- Run | Yrd Mat Mat Total Allies . | . . . Largest Group . | . . . Highest-Rated Group . | . . . Highest-Rated Ally . | . . . Total Orders . | . . . Ally Attacks . | . . . Total Damage . | . . . Kills . | . . . Allies Corrupted . | . . . Allies Melted . | . . . Intel | -11 -10 -9 ------- Run | Yrd Mat Mat Robot Analysis Total . | . . . Derelict Logs Recovered . | . . . Drone Launches . | . . . Drone Recoveries . | . . . Exploration | -11 -10 -9 ------------- Run | Yrd Mat Mat Turns Passed 2336 | 64 1681 591 Spaces Moved 931 | 45 698 188 Core 18 | 17 . 1 Treads 913 | 28 698 187 Legs . | . . . Wheels . | . . . Hover . | . . . Flight . | . . . Fastest Speed 50 | 50 160 240 Average Speed 219 | 118 219 243 Slowest Speed 750 | 160 240 750 Overloaded Moves . | . . . Propulsion Burnouts . | . . . Robots Hopped . | . . . Cave-ins Triggered . | . . . Exploration Rate (%) 36 | 3 92 13 Regions Visited 2 Branch Regions . Pre-discovered Areas . | . . . Known Exits Taken . | . . . Unknown Exits Taken 2 | 1 1 . Scrap Searched . | . . . Spaces Dug . | . . . Terrain Destroyed 127 | . 95 32 Melee . | . . . Projectile . | . . . AOE 127 | . 95 32 Terrain Rammed . | . . . Walls Destroyed . | . . . Machines Disabled . | . . . Actions | -11 -10 -9 --------- Run | Yrd Mat Mat Total 1113 | 55 788 270 Wait 74 | . 30 44 Move 929 | 44 697 188 Hop . | . . . Pick Up 24 | 5 14 5 Fast Attach 2 | 2 . . Attach 11 | 4 1 6 Detach 1 | . 1 . Swap 4 | . 4 . Drop 1 | . 1 . Fire 56 | . 31 25 Melee 3 | . 3 . Ram 1 | . . 1 Kick . | . . . Crush 7 | . 6 1 Escape Stasis . | . . . Rewire . | . . . Trap . | . . . Miscellaneous . | . . . Route ------- -11/Scrapyard -10/Materials (discovered 4 exits: *Mat x3 / [*Min]) -9/Materials (discovered 3 exits: Min / *Sto x2) History --------- Turn | Location | Event 6 | -11/Scrapyard | Discovered new exit (range 16) 65 | -11/Scrapyard | Entered Materials 316 | -10/Materials | Build established: Mutant 328 | -10/Materials | Discovered new exit (range 11) 471 | -10/Materials | Discovered new exit (range 14) 552 | -10/Materials | Destroyed 7 combat bots 989 | -10/Materials | Discovered new exit (range 16) 1381 | -10/Materials | Discovered new exit (range 15) 1746 | -10/Materials | Entered another Materials area 1746 | -9/Materials | Evolved 2 slots: Power x1, Utility x1 1831 | -9/Materials | Lost 3 parts (1p2w) 1988 | -9/Materials | Identified exit to Mines 1988 | -9/Materials | Identified exit to Storage 2337 | -9/Materials | Self-destructed Last Messages --------------- Map updated. Acquired 40 matter. K-01 Serf collects debris. Slammed into K-01 Serf. Connecting with Repair Station... >>Scan(Core Shielding) Scanning Core Shielding... Ready to Repair: Core Shielding Rating: 1 Time: 26 Lgt. Treads destroyed. Med. Laser severed. Lgt. Treads destroyed. ALERT: Hostiles spotted, dispatching reinforcements to Terminal M010. R-06 Scavenger collects Med. Laser. Slammed into W-16 Scout. Sml. Laser severed. Med. Laser destroyed. Map ----- +----------------------------------------------------+ | ???#]]]] #?# """ #?????????????????????????? | | ???#]]]] #?# / #?????????????????????????? | | ???# #?#####/####?????????????????????????? | | ???##### ##### ###????????????????????????? | | ???????# [= [ # #????????????????????????? | | ???????# = # #????????????????????????? | | ???????# [ # #????????????????????????? | | ???????# %#### # #????????????????????????? | | ???????# =##### ###########?????????????????? | | ???????# ## # # ! #?????????????????? | | ???????# ### # # """ #?????????????????? | | ???????# #?# # + """ #?????????????????? | | ???????# #?# # # """ #?????????????????? | | ???????# #?# # # """ #?????????????????? | | ???????# ##### # " " #?????????????????? | | ???????# # # "R" #?????????????????? | | ???????# # # """ #?????????????????? | | ???????# # ####+######?????????????????? | | ???????# ###### #??# #??????????????????????? | | ???????# #????# #??# #??????????????????????? | | ???????# #????# #??# #??????????????????????? | | ?????####+#####?# #??#w#??????????????????????? | | ?????# #?# #??# #??????????????????????? | | ?????# """ #?# #??# #??????????????????????? | | ?????# """ #?# #??#m#??????????????????????? | | ?????# """ #?? #??#@#??????????????????????? | | ?????# #?? #??#l#??????????????????????? | | ?????#"" """ #?# #### #??????????????????????? | | ?????#"T """ #?# #??????????????????????? | | ?????#"" """ #"" +??????????????????????? | | ?????# #"T #??????????????????????? | | ?????##########"" [ #??????????????????????? | | ??????????????### #??????????????????????? | | ????????????????# ??????????????????????? | | ??????????????? // ??????????????????????? | | ?????????????? ? / ??????????????????????? | | ????????????? ##### ??????????????????????? | | ????????????# #????#####??????????????????????? | | ????????????# ????????????????????????????????? | | ????????????#??????????????????????????????????? | | ???????????????????????????????????????????????? | | ???????????????????????????????????????????????? | | ???????????????????????????????????????????????? | | ???????????????????????????????????????????????? | | ???????????????????????????????????????????????? | | ???????????????????????????????????????????????? | | ???????????????????????????????????????????????? | | ???????????????????????????????????????????????? | | ???????????????????????????????????????????????? | | ???????????????????????????????????????????????? | +----------------------------------------------------+ Best States ------------- Heat Dissipation 28 Energy Generation 15 Energy Capacity 275 Matter Stores 248 Matter Capacity 300 Sight Range 16 Robot Scan Range 15 Terrain Scan Density 10 Core Shielding 20 Evasion (%) 50 Recoil Reduction 2 Item Schematics ----------------- None Robot Schematics ------------------ None Fabricated ------------ Nothing Alien Tech Used ----------------- None Achievements -------------- None Challenges ------------ None Game ------ Seed RainbowDirtyNanovents Manual? 0 Play Time 00:14:58 Cumulative 3.2 hours Start 2024.05.01 @ 21:45:25 End 2024.05.01 @ 21:57:30 Sessions 1 Manual Loads 0 Difficulty Rogue Special Mode None Game No. 12 Rogue 12 Adventurer 0 Explorer 0 Win Type - Total 0 Types 0/0/0/0/0/0/0/0/0 Lore% 11 Gallery% 8 Achievement% 8 Wizard Run 0 Options --------- Layout 1 ASCII 0 Keyboard 0 Movement Arrows Keybinds 0 Fullscreen 1 Font 32/SmallcapsGlow Map View 50x35 Zoom Use 0% Tactical HUD 0 Map Filters NONE Filters NONE Steam 1 RUN: a126d4d8-d221-4d4e-9eec-98c7bc9d5cdd